[Event "*** SCC Grand Prix: Titled Tuesday Blitz"]
[Site "Chess.com"]
[Date "2020.06.23"]
[Round "6"]
[White "MF1966Idrisov"]
[Black "antoszu"]
[Result "0-1"]
[WhiteElo "2345"]
[BlackElo "2542"]
[TimeControl "180+1"]
[EndTime "11:04:54 PDT"]
[Termination "antoszu won by resignation"]

1. Nf3 {[%clk 0:03:00.9]} 1... d5 {[%clk 0:02:58.9]} 2. b3 {[%clk 0:03:01.1]}
2... Nf6 {[%clk 0:02:57.4]} 3. Bb2 {[%clk 0:03:01.1]} 3... Bg4 {[%clk
0:02:57.6]} 4. e3 {[%clk 0:03:01.3]} 4... e6 {[%clk 0:02:57.6]} 5. d4 {[%clk
0:03:01.4]} 5... Nbd7 {[%clk 0:02:57.1]} 6. Be2 {[%clk 0:03:01.6]} 6... c5
{[%clk 0:02:56.7]} 7. Ne5 {[%clk 0:03:01.6]} 7... Bxe2 {[%clk 0:02:55.3]} 8.
Qxe2 {[%clk 0:03:01.8]} 8... Rc8 {[%clk 0:02:55]} 9. O-O {[%clk 0:02:59.9]} 9...
Bd6 {[%clk 0:02:49.2]} 10. c4 {[%clk 0:02:59.1]} 10... cxd4 {[%clk 0:02:44.2]}
11. exd4 {[%clk 0:02:47.1]} 11... O-O {[%clk 0:02:39.9]} 12. Nd2 {[%clk
0:02:44.8]} 12... b6 {[%clk 0:02:12.2]} 13. Rac1 {[%clk 0:02:40.3]} 13... dxc4
{[%clk 0:02:07.2]} 14. Ndxc4 {[%clk 0:02:32.3]} 14... Be7 {[%clk 0:02:04]} 15.
f4 {[%clk 0:02:21.4]} 15... Nd5 {[%clk 0:02:00.6]} 16. f5 {[%clk 0:02:18.9]}
16... exf5 {[%clk 0:01:34.9]} 17. Rxf5 {[%clk 0:02:16]} 17... b5 {[%clk
0:01:35.1]} 18. Ne3 {[%clk 0:02:05.6]} 18... Nxe3 {[%clk 0:01:30]} 19. Qxe3
{[%clk 0:02:02]} 19... Rxc1+ {[%clk 0:01:28.1]} 20. Qxc1 {[%clk 0:01:52.2]}
20... Nxe5 {[%clk 0:01:26.7]} 21. Rxe5 {[%clk 0:01:50.8]} 21... Bf6 {[%clk
0:01:26.6]} 22. Re4 {[%clk 0:01:40.1]} 22... Qd5 {[%clk 0:01:19.9]} 23. Qe3
{[%clk 0:01:37.9]} 23... g6 {[%clk 0:01:17.2]} 24. Re8 {[%clk 0:01:34.8]} 24...
Rxe8 {[%clk 0:01:15.3]} 25. Qxe8+ {[%clk 0:01:33.5]} 25... Kg7 {[%clk 0:01:16]}
26. Qe3 {[%clk 0:01:30.9]} 26... b4 {[%clk 0:01:15.3]} 27. Qd3 {[%clk
0:01:26.3]} 27... a5 {[%clk 0:01:12.9]} 28. h3 {[%clk 0:01:23.1]} 28... h5
{[%clk 0:01:07.1]} 29. Kf1 {[%clk 0:01:22.3]} 29... Qg5 {[%clk 0:01:01.1]} 30.
Qe2 {[%clk 0:01:12.9]} 30... Qf5+ {[%clk 0:00:54.7]} 31. Qf2 {[%clk 0:00:52.6]}
31... Qb1+ {[%clk 0:00:51.9]} 32. Ke2 {[%clk 0:00:47.7]} 32... Qxb2+ {[%clk
0:00:51.3]} 0-1

[Event "*** SCC Grand Prix: Titled Tuesday Blitz"]
[Site "Chess.com"]
[Date "2020.06.23"]
[Round "6"]
[White "ValentinDragnev"]
[Black "Hikaru"]
[Result "0-1"]
[WhiteElo "2744"]
[BlackElo "3213"]
[TimeControl "180+1"]
[EndTime "11:04:59 PDT"]
[Termination "Hikaru won by resignation"]

1. d4 {[%clk 0:03:00.9]} 1... g6 {[%clk 0:02:52.5]} 2. Nf3 {[%clk 0:03:00.1]}
2... Bg7 {[%clk 0:02:52.4]} 3. e4 {[%clk 0:03:00.7]} 3... c6 {[%clk 0:02:52.2]}
4. h3 {[%clk 0:02:59.8]} 4... d5 {[%clk 0:02:52.5]} 5. Nbd2 {[%clk 0:03:00.3]}
5... dxe4 {[%clk 0:02:52.2]} 6. Nxe4 {[%clk 0:03:00.6]} 6... Nf6 {[%clk
0:02:52.9]} 7. Nxf6+ {[%clk 0:02:59.8]} 7... exf6 {[%clk 0:02:53.8]} 8. Be2
{[%clk 0:03:00.3]} 8... Be6 {[%clk 0:02:53.6]} 9. O-O {[%clk 0:03:00.9]} 9...
O-O {[%clk 0:02:53.3]} 10. Bf4 {[%clk 0:02:58.2]} 10... Nd7 {[%clk 0:02:53.1]}
11. Qd2 {[%clk 0:02:57.6]} 11... Re8 {[%clk 0:02:52.2]} 12. Rfe1 {[%clk
0:02:57.2]} 12... b5 {[%clk 0:02:52.2]} 13. c3 {[%clk 0:02:49.6]} 13... Nb6
{[%clk 0:02:52]} 14. Bh6 {[%clk 0:02:47]} 14... a5 {[%clk 0:02:45.3]} 15. a3
{[%clk 0:02:38.9]} 15... a4 {[%clk 0:02:42.9]} 16. Bxg7 {[%clk 0:02:33.8]} 16...
Kxg7 {[%clk 0:02:43.8]} 17. Bd3 {[%clk 0:02:31.8]} 17... Qd6 {[%clk 0:02:43]}
18. Re2 {[%clk 0:02:29.8]} 18... Nd5 {[%clk 0:02:41.3]} 19. Rae1 {[%clk
0:02:15.6]} 19... Nf4 {[%clk 0:02:40.8]} 20. Re3 {[%clk 0:02:15.9]} 20... Red8
{[%clk 0:02:36.8]} 21. Bf1 {[%clk 0:02:13]} 21... Rab8 {[%clk 0:02:33.6]} 22.
Re4 {[%clk 0:02:05.8]} 22... g5 {[%clk 0:02:32.9]} 23. h4 {[%clk 0:02:02.2]}
23... Bd5 {[%clk 0:02:16.5]} 24. hxg5 {[%clk 0:01:54.7]} 24... Bxe4 {[%clk
0:02:15.7]} 25. Rxe4 {[%clk 0:01:55.6]} 25... fxg5 {[%clk 0:02:11.6]} 26. Nxg5
{[%clk 0:01:54.5]} 26... Ng6 {[%clk 0:02:12.1]} 27. Qe2 {[%clk 0:01:45.5]} 27...
h6 {[%clk 0:02:09.5]} 28. Nf3 {[%clk 0:01:45.8]} 28... c5 {[%clk 0:02:07.4]} 29.
Qe3 {[%clk 0:01:40.8]} 29... c4 {[%clk 0:02:07]} 30. g3 {[%clk 0:01:37.6]} 30...
Rb7 {[%clk 0:02:05.9]} 31. Ne5 {[%clk 0:01:27.1]} 31... f5 {[%clk 0:01:56.5]}
32. Rh4 {[%clk 0:01:18.8]} 32... Nxh4 {[%clk 0:01:54.8]} 33. gxh4 {[%clk
0:01:15.3]} 33... Qf6 {[%clk 0:01:43.3]} 34. Bg2 {[%clk 0:01:11.6]} 34... Re7
{[%clk 0:01:41]} 35. Qg3+ {[%clk 0:01:11]} 35... Kh7 {[%clk 0:01:40.5]} 36. Qf4
{[%clk 0:01:11.4]} 36... Rde8 {[%clk 0:01:32.3]} 37. Bh3 {[%clk 0:01:08.5]}
37... Rxe5 {[%clk 0:01:30.4]} 38. dxe5 {[%clk 0:01:09.4]} 38... Rxe5 {[%clk
0:01:30.8]} 39. Kf1 {[%clk 0:01:07.9]} 39... Qe6 {[%clk 0:01:27.3]} 40. Qd2
{[%clk 0:01:00.1]} 40... Qd5 {[%clk 0:01:25]} 41. Qxd5 {[%clk 0:00:55.8]} 41...
Rxd5 {[%clk 0:01:25.9]} 42. Ke2 {[%clk 0:00:54.8]} 42... Kg6 {[%clk 0:01:25]}
43. Bg2 {[%clk 0:00:50]} 43... Re5+ {[%clk 0:01:24.8]} 44. Kf3 {[%clk
0:00:47.3]} 44... Re1 {[%clk 0:01:24.3]} 45. Kf4 {[%clk 0:00:45.4]} 45... Rb1
{[%clk 0:01:24.3]} 46. Bh3 {[%clk 0:00:45.7]} 46... Rxb2 {[%clk 0:01:24.4]} 47.
Bxf5+ {[%clk 0:00:46]} 47... Kf6 {[%clk 0:01:25]} 48. f3 {[%clk 0:00:46.1]}
48... Rb3 {[%clk 0:01:25]} 49. Bd7 {[%clk 0:00:46.5]} 49... Rxc3 {[%clk
0:01:24.7]} 50. Bxb5 {[%clk 0:00:46.7]} 50... Rxa3 {[%clk 0:01:25.6]} 51. Bxc4
{[%clk 0:00:46.7]} 51... Ra1 {[%clk 0:01:26.2]} 0-1

[Event "*** SCC Grand Prix: Titled Tuesday Blitz"]
[Site "Chess.com"]
[Date "2020.06.23"]
[Round "6"]
[White "KNCP_719"]
[Black "saikrishnaReturns"]
[Result "0-1"]
[WhiteElo "2467"]
[BlackElo "2636"]
[TimeControl "180+1"]
[EndTime "11:05:00 PDT"]
[Termination "saikrishnaReturns won on time"]

1. e4 {[%clk 0:03:00.9]} 1... e5 {[%clk 0:02:58.8]} 2. Nf3 {[%clk 0:03:00.4]}
2... Nc6 {[%clk 0:02:59.3]} 3. d4 {[%clk 0:03:00.7]} 3... exd4 {[%clk
0:02:59.1]} 4. Bc4 {[%clk 0:03:01.3]} 4... Nf6 {[%clk 0:02:59.3]} 5. e5 {[%clk
0:02:59.9]} 5... d5 {[%clk 0:02:59.2]} 6. Bb5 {[%clk 0:03:00.1]} 6... Ne4 {[%clk
0:02:59.7]} 7. Nxd4 {[%clk 0:02:59.4]} 7... Bd7 {[%clk 0:03:00.3]} 8. Bxc6
{[%clk 0:02:41.7]} 8... bxc6 {[%clk 0:03:01.2]} 9. O-O {[%clk 0:02:41.6]} 9...
Bc5 {[%clk 0:03:00.7]} 10. f3 {[%clk 0:02:37.6]} 10... Ng5 {[%clk 0:03:00.2]}
11. f4 {[%clk 0:02:37.9]} 11... Ne4 {[%clk 0:03:00.4]} 12. Be3 {[%clk 0:02:37]}
12... Bb6 {[%clk 0:03:00.5]} 13. Nd2 {[%clk 0:02:24.4]} 13... c5 {[%clk
0:03:00.4]} 14. N4f3 {[%clk 0:02:21.8]} 14... Nxd2 {[%clk 0:02:58.3]} 15. Qxd2
{[%clk 0:02:22.7]} 15... d4 {[%clk 0:02:58.5]} 16. Bf2 {[%clk 0:02:23.2]} 16...
Bc6 {[%clk 0:02:58]} 17. f5 {[%clk 0:02:21.5]} 17... Bxf3 {[%clk 0:02:56.2]} 18.
gxf3 {[%clk 0:02:21.1]} 18... Qd5 {[%clk 0:02:55.9]} 19. Qg5 {[%clk 0:02:17.9]}
19... h6 {[%clk 0:02:42.8]} 20. Qxg7 {[%clk 0:01:52.6]} 20... O-O-O {[%clk
0:02:42.3]} 21. Bg3 {[%clk 0:01:42.4]} 21... Rdg8 {[%clk 0:02:32]} 22. Qf6
{[%clk 0:01:39]} 22... h5 {[%clk 0:02:32.2]} 23. Kh1 {[%clk 0:01:31.5]} 23... h4
{[%clk 0:02:29.4]} 24. Bf4 {[%clk 0:01:31.3]} 24... Rh5 {[%clk 0:02:12.9]} 25.
Rae1 {[%clk 0:01:05.7]} 25... c4 {[%clk 0:02:01.7]} 26. b3 {[%clk 0:00:18.4]}
26... d3 {[%clk 0:01:50.7]} 27. bxc4 {[%clk 0:00:17.8]} 27... Rg1+ {[%clk
0:01:48.9]} 28. Rxg1 {[%clk 0:00:14.2]} 28... Qxf3+ {[%clk 0:01:49.8]} 29. Rg2
{[%clk 0:00:11.6]} 29... h3 {[%clk 0:01:50.7]} 30. Qg7 {[%clk 0:00:07.5]} 30...
Qxf4 {[%clk 0:01:36.1]} 31. Qg8+ {[%clk 0:00:02.7]} 31... Kb7 {[%clk 0:01:35.4]}
32. Rg3 {[%clk 0:00:02.4]} 32... d2 {[%clk 0:01:34.2]} 33. Rd1 {[%clk
0:00:01.8]} 33... Qe4+ {[%clk 0:01:33]} 0-1

[Event "*** SCC Grand Prix: Titled Tuesday Blitz"]
[Site "Chess.com"]
[Date "2020.06.23"]
[Round "6"]
[White "LiemLe"]
[Black "Gordima"]
[Result "1-0"]
[WhiteElo "3000"]
[BlackElo "2740"]
[TimeControl "180+1"]
[EndTime "11:05:03 PDT"]
[Termination "LiemLe won by resignation"]

1. d4 {[%clk 0:03:00.9]} 1... Nf6 {[%clk 0:02:59.5]} 2. Nf3 {[%clk 0:02:59.6]}
2... c5 {[%clk 0:02:59]} 3. d5 {[%clk 0:02:59.4]} 3... b5 {[%clk 0:02:59.1]} 4.
Bg5 {[%clk 0:02:58.6]} 4... Qb6 {[%clk 0:02:58.8]} 5. Bxf6 {[%clk 0:02:57.5]}
5... Qxf6 {[%clk 0:02:58.1]} 6. c3 {[%clk 0:02:58.1]} 6... g6 {[%clk 0:02:50.2]}
7. e4 {[%clk 0:02:58.3]} 7... Qb6 {[%clk 0:02:50.5]} 8. a4 {[%clk 0:02:56]} 8...
b4 {[%clk 0:02:42]} 9. a5 {[%clk 0:02:55.1]} 9... Qb7 {[%clk 0:02:42.2]} 10. Bc4
{[%clk 0:02:28.8]} 10... Bg7 {[%clk 0:02:40.5]} 11. O-O {[%clk 0:02:28.9]} 11...
d6 {[%clk 0:02:38.1]} 12. Qd3 {[%clk 0:02:25.5]} 12... O-O {[%clk 0:02:35.8]}
13. Nbd2 {[%clk 0:02:19.5]} 13... Nd7 {[%clk 0:02:35.3]} 14. Bb5 {[%clk
0:02:16.4]} 14... Rb8 {[%clk 0:02:31.1]} 15. Bc6 {[%clk 0:02:15.6]} 15... Qc7
{[%clk 0:02:29.8]} 16. h3 {[%clk 0:02:02.6]} 16... Nf6 {[%clk 0:02:28.6]} 17.
Ra4 {[%clk 0:01:58.9]} 17... bxc3 {[%clk 0:02:23.3]} 18. bxc3 {[%clk 0:01:59.8]}
18... e6 {[%clk 0:02:23]} 19. c4 {[%clk 0:01:52.5]} 19... Ba6 {[%clk 0:02:17.9]}
20. Re1 {[%clk 0:01:50.3]} 20... exd5 {[%clk 0:01:37.8]} 21. exd5 {[%clk
0:01:51.2]} 21... Rb2 {[%clk 0:01:35]} 22. Ne4 {[%clk 0:01:27.3]} 22... Nd7
{[%clk 0:01:20.4]} 23. Qe3 {[%clk 0:01:11.7]} 23... Nb8 {[%clk 0:01:18.3]} 24.
Bb5 {[%clk 0:00:56]} 24... Bc8 {[%clk 0:01:14.6]} 25. a6 {[%clk 0:00:55]} 25...
Bd7 {[%clk 0:01:06.9]} 26. Qf4 {[%clk 0:00:54.4]} 26... Bxb5 {[%clk 0:01:00.8]}
27. cxb5 {[%clk 0:00:55.3]} 27... Rd8 {[%clk 0:01:00.2]} 28. Nf6+ {[%clk
0:00:52.5]} 28... Kh8 {[%clk 0:00:51.7]} 29. Qh4 {[%clk 0:00:37.8]} 29... h6
{[%clk 0:00:46.8]} 30. Rae4 {[%clk 0:00:36.6]} 1-0

[Event "*** SCC Grand Prix: Titled Tuesday Blitz"]
[Site "Chess.com"]
[Date "2020.06.23"]
[Round "6"]
[White "rubhani"]
[Black "Angry_Twin"]
[Result "0-1"]
[WhiteElo "2533"]
[BlackElo "2800"]
[TimeControl "180+1"]
[EndTime "11:05:06 PDT"]
[Termination "Angry_Twin won on time"]

1. e4 {[%clk 0:02:54.2]} 1... c5 {[%clk 0:02:59.8]} 2. Nf3 {[%clk 0:02:54.4]}
2... d6 {[%clk 0:03:00.3]} 3. d3 {[%clk 0:02:54.8]} 3... Nf6 {[%clk 0:03:00.1]}
4. g3 {[%clk 0:02:55.2]} 4... g6 {[%clk 0:03:00.4]} 5. Bg2 {[%clk 0:02:55.7]}
5... Bg7 {[%clk 0:03:01.1]} 6. O-O {[%clk 0:02:56.3]} 6... O-O {[%clk
0:03:01.7]} 7. Nc3 {[%clk 0:02:56.7]} 7... Nc6 {[%clk 0:03:01.7]} 8. Be3 {[%clk
0:02:56]} 8... Rb8 {[%clk 0:03:01.9]} 9. a4 {[%clk 0:02:55.7]} 9... a6 {[%clk
0:03:02.1]} 10. h3 {[%clk 0:02:56.1]} 10... b5 {[%clk 0:03:02.2]} 11. axb5
{[%clk 0:02:56]} 11... axb5 {[%clk 0:03:03.1]} 12. Nh4 {[%clk 0:02:47.3]} 12...
b4 {[%clk 0:03:02.8]} 13. Ne2 {[%clk 0:02:47.5]} 13... Bb7 {[%clk 0:03:03.1]}
14. f4 {[%clk 0:02:45.7]} 14... Ra8 {[%clk 0:03:03.6]} 15. Qd2 {[%clk
0:02:36.3]} 15... Nd7 {[%clk 0:03:03.4]} 16. Rxa8 {[%clk 0:02:27.9]} 16... Qxa8
{[%clk 0:03:02.8]} 17. b3 {[%clk 0:02:27.7]} 17... Qa2 {[%clk 0:03:01.2]} 18. f5
{[%clk 0:02:27.9]} 18... Ra8 {[%clk 0:02:53.8]} 19. Bh6 {[%clk 0:01:45.6]} 19...
Bh8 {[%clk 0:02:41.6]} 20. e5 {[%clk 0:00:54.1]} 20... Ndxe5 {[%clk 0:02:38.3]}
21. Bd5 {[%clk 0:00:38.5]} 21... Nd8 {[%clk 0:02:35.3]} 22. fxg6 {[%clk
0:00:20.2]} 22... hxg6 {[%clk 0:02:32.1]} 23. Nxg6 {[%clk 0:00:17.6]} 23... Nxg6
{[%clk 0:02:25.7]} 24. Rxf7 {[%clk 0:00:17.5]} 24... Bxd5 {[%clk 0:02:15.2]} 25.
Rf8+ {[%clk 0:00:11]} 25... Kh7 {[%clk 0:01:56.1]} 26. Qg5 {[%clk 0:00:11.6]}
26... Nf7 {[%clk 0:01:43.1]} 27. Qxd5 {[%clk 0:00:06.6]} 27... Rxf8 {[%clk
0:01:37.8]} 28. Bxf8 {[%clk 0:00:07]} 28... Qa1+ {[%clk 0:01:36.1]} 29. Kg2
{[%clk 0:00:06.6]} 29... Qf6 {[%clk 0:01:35.7]} 30. Qh5+ {[%clk 0:00:03.5]}
30... Kg8 {[%clk 0:01:35.5]} 31. Bh6 {[%clk 0:00:03.2]} 31... Nh4+ {[%clk
0:01:30]} 32. gxh4 {[%clk 0:00:02.2]} 32... Qxh6 {[%clk 0:01:30.2]} 33. Qg4+
{[%clk 0:00:02.4]} 33... Qg7 {[%clk 0:01:30.3]} 34. Nf4 {[%clk 0:00:01.4]} 34...
Ne5 {[%clk 0:01:26.9]} 0-1

[Event "*** SCC Grand Prix: Titled Tuesday Blitz"]
[Site "Chess.com"]
[Date "2020.06.23"]
[Round "6"]
[White "A-Fier"]
[Black "GM_dmitrij"]
[Result "1-0"]
[WhiteElo "2783"]
[BlackElo "2902"]
[TimeControl "180+1"]
[EndTime "11:05:07 PDT"]
[Termination "A-Fier won by checkmate"]

1. d4 {[%clk 0:03:00.9]} 1... Nf6 {[%clk 0:02:59.3]} 2. c4 {[%clk 0:03:01.4]}
2... e6 {[%clk 0:02:59.6]} 3. Nf3 {[%clk 0:03:02]} 3... b6 {[%clk 0:02:59.1]} 4.
g3 {[%clk 0:03:02.1]} 4... Ba6 {[%clk 0:02:58.8]} 5. b3 {[%clk 0:03:01.2]} 5...
Bb4+ {[%clk 0:02:58.3]} 6. Bd2 {[%clk 0:03:00.9]} 6... Be7 {[%clk 0:02:58.9]} 7.
Bg2 {[%clk 0:03:01.4]} 7... d5 {[%clk 0:02:59.8]} 8. cxd5 {[%clk 0:02:59.7]}
8... exd5 {[%clk 0:03:00.7]} 9. O-O {[%clk 0:03:00]} 9... O-O {[%clk 0:03:01.6]}
10. Nc3 {[%clk 0:02:59.6]} 10... Re8 {[%clk 0:02:59.8]} 11. Rc1 {[%clk
0:02:59.1]} 11... Nbd7 {[%clk 0:02:58.3]} 12. Re1 {[%clk 0:02:59.1]} 12... Rc8
{[%clk 0:02:52.4]} 13. Bf4 {[%clk 0:02:59.1]} 13... Nf8 {[%clk 0:02:32.7]} 14.
Ne5 {[%clk 0:02:58.1]} 14... c6 {[%clk 0:02:33]} 15. e4 {[%clk 0:02:54.6]} 15...
Ne6 {[%clk 0:02:29.8]} 16. Be3 {[%clk 0:02:27.5]} 16... Bb4 {[%clk 0:02:20.8]}
17. f3 {[%clk 0:01:51.9]} 17... c5 {[%clk 0:02:16.7]} 18. exd5 {[%clk
0:01:27.1]} 18... Nxd5 {[%clk 0:02:13.7]} 19. Nxd5 {[%clk 0:01:26.8]} 19... Bxe1
{[%clk 0:02:03.7]} 20. f4 {[%clk 0:01:27.2]} 20... cxd4 {[%clk 0:01:51.9]} 21.
Rxc8 {[%clk 0:01:11.5]} 21... Qxc8 {[%clk 0:01:45.8]} 22. Qh5 {[%clk 0:00:55.9]}
22... dxe3 {[%clk 0:01:21]} 23. Be4 {[%clk 0:00:41.9]} 23... Nf8 {[%clk
0:00:36]} 24. Bxh7+ {[%clk 0:00:35.3]} 24... Nxh7 {[%clk 0:00:30.4]} 25. Qxf7+
{[%clk 0:00:35.5]} 25... Kh8 {[%clk 0:00:31]} 26. Ng6# {[%clk 0:00:36.4]} 1-0

[Event "*** SCC Grand Prix: Titled Tuesday Blitz"]
[Site "Chess.com"]
[Date "2020.06.23"]
[Round "6"]
[White "Lucas_Tomiello"]
[Black "Bazarov04"]
[Result "0-1"]
[WhiteElo "2326"]
[BlackElo "2505"]
[TimeControl "180+1"]
[EndTime "11:05:07 PDT"]
[Termination "Bazarov04 won by resignation"]

1. e4 {[%clk 0:03:00.9]} 1... d6 {[%clk 0:02:59.6]} 2. d4 {[%clk 0:03:00.8]}
2... Nf6 {[%clk 0:02:59.1]} 3. Nc3 {[%clk 0:03:01.2]} 3... c6 {[%clk 0:02:59.6]}
4. Be3 {[%clk 0:03:01]} 4... g6 {[%clk 0:02:51.3]} 5. f3 {[%clk 0:03:00.7]} 5...
Bg7 {[%clk 0:02:51]} 6. Qd2 {[%clk 0:03:01.3]} 6... b5 {[%clk 0:02:49.5]} 7. Bh6
{[%clk 0:02:55.1]} 7... Bxh6 {[%clk 0:02:48.1]} 8. Qxh6 {[%clk 0:02:56]} 8... b4
{[%clk 0:02:48.4]} 9. Nce2 {[%clk 0:02:51.3]} 9... Qa5 {[%clk 0:02:48.5]} 10.
Qd2 {[%clk 0:02:33.5]} 10... c5 {[%clk 0:02:46]} 11. d5 {[%clk 0:02:26.4]} 11...
Nbd7 {[%clk 0:02:42.1]} 12. h4 {[%clk 0:02:24.9]} 12... Qb6 {[%clk 0:02:36.6]}
13. Nf4 {[%clk 0:02:21.9]} 13... h5 {[%clk 0:02:27.6]} 14. Ngh3 {[%clk
0:02:18.9]} 14... Ne5 {[%clk 0:02:25.2]} 15. Ng5 {[%clk 0:02:16.1]} 15... Ba6
{[%clk 0:02:22.1]} 16. Bxa6 {[%clk 0:01:40.9]} 16... Qxa6 {[%clk 0:02:23]} 17.
Qe2 {[%clk 0:01:33.1]} 17... Qb6 {[%clk 0:02:21.5]} 18. O-O {[%clk 0:01:30.7]}
18... a5 {[%clk 0:02:08.4]} 19. g3 {[%clk 0:01:27.6]} 19... c4+ {[%clk
0:02:00.3]} 20. Kg2 {[%clk 0:01:27]} 20... Rc8 {[%clk 0:02:00.6]} 21. a3 {[%clk
0:01:17.8]} 21... O-O {[%clk 0:01:56.5]} 22. axb4 {[%clk 0:01:15.4]} 22... axb4
{[%clk 0:01:54.5]} 23. g4 {[%clk 0:00:25.5]} 23... hxg4 {[%clk 0:01:45.1]} 24.
h5 {[%clk 0:00:25.6]} 24... gxf3+ {[%clk 0:01:36.5]} 25. Nxf3 {[%clk 0:00:24.2]}
25... Neg4 {[%clk 0:01:35.7]} 26. hxg6 {[%clk 0:00:18.3]} 26... fxg6 {[%clk
0:01:35.6]} 27. Ne6 {[%clk 0:00:17.5]} 27... Nh5 {[%clk 0:01:06.4]} 28. Nxf8
{[%clk 0:00:06.6]} 28... Nf4+ {[%clk 0:01:05.6]} 0-1

[Event "*** SCC Grand Prix: Titled Tuesday Blitz"]
[Site "Chess.com"]
[Date "2020.06.23"]
[Round "6"]
[White "Arman_Hakemi"]
[Black "Dr-Bassem"]
[Result "0-1"]
[WhiteElo "2577"]
[BlackElo "2798"]
[TimeControl "180+1"]
[EndTime "11:05:13 PDT"]
[Termination "Dr-Bassem won by resignation"]

1. b4 {[%clk 0:03:00.9]} 1... Nf6 {[%clk 0:02:45.5]} 2. Bb2 {[%clk 0:03:01]}
2... g6 {[%clk 0:02:45.1]} 3. g3 {[%clk 0:03:01]} 3... Bg7 {[%clk 0:02:45]} 4.
Bg2 {[%clk 0:03:01.5]} 4... O-O {[%clk 0:02:45.3]} 5. c4 {[%clk 0:03:01.7]} 5...
d6 {[%clk 0:02:44.5]} 6. d3 {[%clk 0:03:01.6]} 6... e5 {[%clk 0:02:44.8]} 7. Nd2
{[%clk 0:03:01.7]} 7... Re8 {[%clk 0:02:42]} 8. Ngf3 {[%clk 0:03:01]} 8... a5
{[%clk 0:02:39.4]} 9. b5 {[%clk 0:02:56.9]} 9... Nbd7 {[%clk 0:02:39.1]} 10. O-O
{[%clk 0:02:55.9]} 10... Nc5 {[%clk 0:02:38.6]} 11. a4 {[%clk 0:02:51.8]} 11...
Bf5 {[%clk 0:02:21.7]} 12. Nb3 {[%clk 0:02:51.4]} 12... e4 {[%clk 0:02:09]} 13.
dxe4 {[%clk 0:02:25]} 13... Nfxe4 {[%clk 0:02:00.7]} 14. Bxg7 {[%clk 0:02:24.3]}
14... Kxg7 {[%clk 0:01:59]} 15. Nfd4 {[%clk 0:02:23.3]} 15... Qf6 {[%clk
0:01:53.3]} 16. Nxf5+ {[%clk 0:02:03.7]} 16... Qxf5 {[%clk 0:01:54.2]} 17. Qd4+
{[%clk 0:01:46.4]} 17... Qe5 {[%clk 0:01:32.7]} 18. Qxe5+ {[%clk 0:01:41.4]}
18... Rxe5 {[%clk 0:01:33.3]} 19. Nxc5 {[%clk 0:01:31.7]} 19... Nxc5 {[%clk
0:01:34.2]} 20. e3 {[%clk 0:01:31.7]} 20... Rae8 {[%clk 0:01:29.6]} 21. Rfc1
{[%clk 0:01:29.8]} 21... f5 {[%clk 0:01:18]} 22. Rc3 {[%clk 0:01:21.3]} 22... g5
{[%clk 0:01:17.2]} 23. Bd5 {[%clk 0:00:54.6]} 23... b6 {[%clk 0:01:13.5]} 24.
Kg2 {[%clk 0:00:51.1]} 24... h5 {[%clk 0:01:09.7]} 25. Kf3 {[%clk 0:00:41.4]}
25... Kg6 {[%clk 0:00:58.9]} 26. Bc6 {[%clk 0:00:37.2]} 26... Rf8 {[%clk
0:00:58.1]} 27. Bd5 {[%clk 0:00:37.6]} 27... h4 {[%clk 0:00:51.2]} 28. gxh4
{[%clk 0:00:28.8]} 28... g4+ {[%clk 0:00:51.4]} 29. Kg3 {[%clk 0:00:26]} 29...
Rxd5 {[%clk 0:00:51.1]} 0-1

[Event "*** SCC Grand Prix: Titled Tuesday Blitz"]
[Site "Chess.com"]
[Date "2020.06.23"]
[Round "6"]
[White "aa175"]
[Black "Colombiano07"]
[Result "1-0"]
[WhiteElo "2404"]
[BlackElo "2225"]
[TimeControl "180+1"]
[EndTime "11:05:18 PDT"]
[Termination "aa175 won by resignation"]

1. d4 {[%clk 0:03:00.9]} 1... d5 {[%clk 0:02:59.1]} 2. Bf4 {[%clk 0:03:01.1]}
2... e6 {[%clk 0:02:55.9]} 3. e3 {[%clk 0:02:59.9]} 3... Nf6 {[%clk 0:02:55.8]}
4. Nd2 {[%clk 0:02:48.1]} 4... c5 {[%clk 0:02:49]} 5. c3 {[%clk 0:02:47.8]} 5...
Nc6 {[%clk 0:02:48.8]} 6. Ngf3 {[%clk 0:02:47.6]} 6... Bd6 {[%clk 0:02:49]} 7.
Bg3 {[%clk 0:02:46.2]} 7... Qc7 {[%clk 0:02:45]} 8. dxc5 {[%clk 0:02:44.3]} 8...
Bxg3 {[%clk 0:02:44.7]} 9. hxg3 {[%clk 0:02:45.2]} 9... e5 {[%clk 0:02:44.6]}
10. Qa4 {[%clk 0:02:36]} 10... O-O {[%clk 0:02:43.5]} 11. Qh4 {[%clk 0:02:30.7]}
11... h6 {[%clk 0:01:58.4]} 12. e4 {[%clk 0:02:19.9]} 12... d4 {[%clk 0:01:53]}
13. cxd4 {[%clk 0:02:20.8]} 13... exd4 {[%clk 0:01:52.7]} 14. Qf4 {[%clk
0:02:15.7]} 14... Qxf4 {[%clk 0:01:48.6]} 15. gxf4 {[%clk 0:02:16.6]} 15... Re8
{[%clk 0:01:45.3]} 16. Bd3 {[%clk 0:02:08.5]} 16... Nd5 {[%clk 0:01:41.4]} 17.
g3 {[%clk 0:02:03.1]} 17... Ndb4 {[%clk 0:01:38.2]} 18. Ke2 {[%clk 0:01:53.1]}
18... Nxd3 {[%clk 0:01:32.2]} 19. Kxd3 {[%clk 0:01:54]} 19... b6 {[%clk
0:01:32.9]} 20. Nb3 {[%clk 0:01:22.1]} 20... Ba6+ {[%clk 0:01:28.7]} 21. Kd2
{[%clk 0:01:20.2]} 21... Rab8 {[%clk 0:01:24.9]} 22. Rac1 {[%clk 0:01:08.1]}
22... Rxe4 {[%clk 0:01:22]} 23. Rhe1 {[%clk 0:01:06.2]} 23... Rxe1 {[%clk
0:01:22.6]} 24. Nxe1 {[%clk 0:01:07.1]} 24... Bc8 {[%clk 0:01:18.8]} 25. cxb6
{[%clk 0:01:04.1]} 25... Rxb6 {[%clk 0:01:19.7]} 26. Nf3 {[%clk 0:00:55]} 26...
Be6 {[%clk 0:01:17.8]} 27. Nfxd4 {[%clk 0:00:52.7]} 27... Nxd4 {[%clk
0:01:18.7]} 28. Nxd4 {[%clk 0:00:50.5]} 28... Rxb2+ {[%clk 0:01:19.6]} 29. Rc2
{[%clk 0:00:43.1]} 29... Rxa2 {[%clk 0:01:16.4]} 30. Rxa2 {[%clk 0:00:27.5]}
30... Bxa2 {[%clk 0:01:17.3]} 31. Nc6 {[%clk 0:00:16.2]} 31... a6 {[%clk
0:01:16.6]} 32. Kc3 {[%clk 0:00:16.4]} 32... Bd5 {[%clk 0:01:07.8]} 33. Ne7+
{[%clk 0:00:16.2]} 1-0